[Event "Titled Tuesday Blitz February 28 Early 2023"]
[White "So, Wesley"]
[Black "Drygalov, Andrey"]
[WhiteFideId "5202213"]
[BlackFideId "24171735"]
[WhiteElo "2739"]
[BlackElo "2471"]
[Result "1-0"]
[Round "03"]
[TimeControl "180+2"]
[Date "2023.02.28"]
[WhiteClock "0:00:14"]
[BlackClock "0:00:01"]

1. d4 {[%clk 0:02:53]}  Nf6 {[%clk 0:02:59]} 2. Nf3 {[%clk 0:02:51]}  d5 {[%clk 0:02:59]} 3. c4 {[%clk 0:02:51]}  e6 {[%clk 0:03:00]} 4. g3 {[%clk 0:02:52]}  Bb4+ {[%clk 0:02:59]} 5. Bd2 {[%clk 0:02:51]}  Be7 {[%clk 0:02:59]} 6. Bg2 {[%clk 0:02:52]}  O-O {[%clk 0:02:59]} 7. Qc2 {[%clk 0:02:52]}  Nbd7 {[%clk 0:02:59]} 8. O-O {[%clk 0:02:50]}  c6 {[%clk 0:03:00]} 9. Bf4 {[%clk 0:02:50]}  b6 {[%clk 0:03:00]} 10. Rd1 {[%clk 0:02:46]}  Ba6 {[%clk 0:02:59]} 11. cxd5 {[%clk 0:02:46]}  cxd5 {[%clk 0:02:57]} 12. Ne5 {[%clk 0:02:47]}  Rc8 {[%clk 0:02:56]} 13. Nc6 {[%clk 0:02:45]}  Bb5 {[%clk 0:02:54]} 14. Nxe7+ {[%clk 0:02:44]}  Qxe7 {[%clk 0:02:55]} 15. Nc3 {[%clk 0:02:45]}  Bc6 {[%clk 0:02:53]} 16. Qd3 {[%clk 0:02:35]}  Qb4 {[%clk 0:02:18]} 17. a3 {[%clk 0:02:26]}  Qe7 {[%clk 0:02:13]} 18. Rac1 {[%clk 0:02:23]}  Nb8 {[%clk 0:02:11]} 19. e3 {[%clk 0:02:07]}  Qb7 {[%clk 0:02:02]} 20. Rc2 {[%clk 0:02:04]}  Bd7 {[%clk 0:01:21]} 21. Rdc1 {[%clk 0:02:01]}  h6 {[%clk 0:01:14]} 22. h3 {[%clk 0:01:51]}  b5 {[%clk 0:01:08]} 23. Be5 {[%clk 0:01:42]}  b4 {[%clk 0:00:38]} 24. axb4 {[%clk 0:01:41]}  Qxb4 {[%clk 0:00:39]} 25. Bxf6 {[%clk 0:01:30]}  gxf6 {[%clk 0:00:39]} 26. Qe2 {[%clk 0:01:29]}  f5 {[%clk 0:00:37]} 27. Qh5 {[%clk 0:01:20]}  Kg7 {[%clk 0:00:37]} 28. Qh4 {[%clk 0:01:15]}  Qb6 {[%clk 0:00:30]} 29. Qf4 {[%clk 0:00:58]}  Qd8 {[%clk 0:00:30]} 30. Qe5+ {[%clk 0:00:53]}  Qf6 {[%clk 0:00:29]} 31. Qd6 {[%clk 0:00:54]}  Rc6 {[%clk 0:00:28]} 32. Qa3 {[%clk 0:00:52]}  a6 {[%clk 0:00:20]} 33. Ne2 {[%clk 0:00:49]}  Rfc8 {[%clk 0:00:20]} 34. Nf4 {[%clk 0:00:46]}  Qd8 {[%clk 0:00:19]} 35. Nh5+ {[%clk 0:00:45]}  Kg6 {[%clk 0:00:18]} 36. Nf4+ {[%clk 0:00:45]}  Kg7 {[%clk 0:00:19]} 37. Rxc6 {[%clk 0:00:45]}  Rxc6 {[%clk 0:00:19]} 38. Rxc6 {[%clk 0:00:45]}  Bxc6 {[%clk 0:00:19]} 39. Nh5+ {[%clk 0:00:44]}  Kg6 {[%clk 0:00:19]} 40. g4 {[%clk 0:00:45]}  fxg4 {[%clk 0:00:15]} 41. hxg4 {[%clk 0:00:45]}  Bb5 {[%clk 0:00:10]} 42. e4 {[%clk 0:00:43]}  dxe4 {[%clk 0:00:02]} 43. Bxe4+ {[%clk 0:00:44]}  f5 {[%clk 0:00:02]} 44. Nf4+ {[%clk 0:00:26]}  Kf6 {[%clk 0:00:03]} 45. Qh3 {[%clk 0:00:23]}  Qxd4 {[%clk 0:00:02]} 46. Qxh6+ {[%clk 0:00:23]}  Ke7 {[%clk 0:00:03]} 47. Qxe6+ {[%clk 0:00:22]}  Kd8 {[%clk 0:00:04]} 48. Qg8+ {[%clk 0:00:20]}  Kd7 {[%clk 0:00:04]} 49. Bxf5+ {[%clk 0:00:20]}  Ke7 {[%clk 0:00:04]} 50. Qe6+ {[%clk 0:00:19]}  Kf8 {[%clk 0:00:03]} 51. Qc8+ {[%clk 0:00:18]}  Kf7 {[%clk 0:00:02]} 52. Qxb8 {[%clk 0:00:16]}  Qd1+ {[%clk 0:00:02]} 53. Kh2 {[%clk 0:00:16]}  Kf6 {[%clk 0:00:01]} 54. Qf8+ {[%clk 0:00:14]}  Ke5 {[%clk 0:00:01]} 55. Ng6+ {[%clk 0:00:14]}  Kd4 {[%clk 0:00:01]} 56. Qd6+ {[%clk 0:00:14]} 1-0


[Site "https://www.chess.com"]

[Event "Titled Tuesday Blitz February 28 Early 2023"]
[White "Ahmadzada, Ahmad"]
[Black "Andreikin, Dmitry"]
[WhiteFideId "13413007"]
[BlackFideId "4158814"]
[WhiteElo "2388"]
[BlackElo "2736"]
[Result "1-0"]
[Round "03"]
[TimeControl "180+2"]
[Date "2023.02.28"]
[WhiteClock "0:00:05"]
[BlackClock "0:00:05"]

1. Nf3 {[%clk 0:03:00]}  Nf6 {[%clk 0:02:57]} 2. g3 {[%clk 0:03:00]}  d5 {[%clk 0:02:56]} 3. c4 {[%clk 0:02:59]}  d4 {[%clk 0:02:51]} 4. Bg2 {[%clk 0:02:59]}  c5 {[%clk 0:02:48]} 5. O-O {[%clk 0:02:58]}  Nc6 {[%clk 0:02:48]} 6. e3 {[%clk 0:02:58]}  e5 {[%clk 0:02:48]} 7. exd4 {[%clk 0:02:58]}  exd4 {[%clk 0:02:47]} 8. Re1+ {[%clk 0:02:57]}  Be7 {[%clk 0:02:48]} 9. d3 {[%clk 0:02:57]}  O-O {[%clk 0:02:48]} 10. Bf4 {[%clk 0:02:52]}  Re8 {[%clk 0:02:39]} 11. Ne5 {[%clk 0:02:49]}  Nxe5 {[%clk 0:02:36]} 12. Bxe5 {[%clk 0:02:49]}  Ng4 {[%clk 0:02:34]} 13. Bf4 {[%clk 0:02:43]}  Qb6 {[%clk 0:02:20]} 14. Nd2 {[%clk 0:02:03]}  Bd7 {[%clk 0:02:15]} 15. h3 {[%clk 0:01:57]}  Nf6 {[%clk 0:02:08]} 16. Qb3 {[%clk 0:01:51]}  Bc6 {[%clk 0:02:05]} 17. g4 {[%clk 0:01:45]}  Nd7 {[%clk 0:01:56]} 18. Re2 {[%clk 0:01:37]}  Bxg2 {[%clk 0:01:52]} 19. Qxb6 {[%clk 0:01:35]}  Nxb6 {[%clk 0:01:49]} 20. Kxg2 {[%clk 0:01:35]}  f6 {[%clk 0:01:50]} 21. Rae1 {[%clk 0:01:34]}  Kf7 {[%clk 0:01:49]} 22. Ne4 {[%clk 0:01:25]}  Nd7 {[%clk 0:01:21]} 23. Bd6 {[%clk 0:01:12]}  Bf8 {[%clk 0:01:21]} 24. Bxf8 {[%clk 0:01:02]}  Kxf8 {[%clk 0:01:22]} 25. f4 {[%clk 0:01:02]}  Re6 {[%clk 0:01:11]} 26. Kf3 {[%clk 0:00:53]}  Rae8 {[%clk 0:01:06]} 27. Nd6 {[%clk 0:00:42]}  Rxe2 {[%clk 0:00:58]} 28. Rxe2 {[%clk 0:00:42]}  Rxe2 {[%clk 0:00:56]} 29. Kxe2 {[%clk 0:00:43]}  b6 {[%clk 0:00:53]} 30. Nb5 {[%clk 0:00:43]}  a5 {[%clk 0:00:49]} 31. Kf3 {[%clk 0:00:40]}  f5 {[%clk 0:00:36]} 32. gxf5 {[%clk 0:00:37]}  Ke7 {[%clk 0:00:35]} 33. Ke4 {[%clk 0:00:32]}  Kf6 {[%clk 0:00:27]} 34. Nc7 {[%clk 0:00:26]}  h5 {[%clk 0:00:25]} 35. Ne8+ {[%clk 0:00:24]}  Kf7 {[%clk 0:00:25]} 36. Nd6+ {[%clk 0:00:24]}  Kf6 {[%clk 0:00:24]} 37. Kd5 {[%clk 0:00:25]}  Nb8 {[%clk 0:00:17]} 38. Ne8+ {[%clk 0:00:16]}  Kxf5 {[%clk 0:00:17]} 39. Nxg7+ {[%clk 0:00:15]}  Kxf4 {[%clk 0:00:17]} 40. Nxh5+ {[%clk 0:00:15]}  Ke3 {[%clk 0:00:18]} 41. Nf6 {[%clk 0:00:09]}  Kxd3 {[%clk 0:00:18]} 42. h4 {[%clk 0:00:10]}  Kc2 {[%clk 0:00:16]} 43. Kd6 {[%clk 0:00:05]}  Na6 {[%clk 0:00:06]} 44. h5 {[%clk 0:00:04]}  Nb4 {[%clk 0:00:05]} 45. h6 {[%clk 0:00:05]}  d3 {[%clk 0:00:04]} 46. Ne4 {[%clk 0:00:05]}  Nxa2 {[%clk 0:00:04]} 47. h7 {[%clk 0:00:05]}  Nc1 {[%clk 0:00:04]} 48. h8=Q {[%clk 0:00:05]}  Nb3 {[%clk 0:00:05]} 49. Qc3+ {[%clk 0:00:05]}  Kb1 {[%clk 0:00:05]} 50. Qxb3 {[%clk 0:00:05]} 1-0


[Site "https://www.chess.com"]

[Event "Titled Tuesday Blitz February 28 Early 2023"]
[White "Caruana, Fabiano"]
[Black "Postny, Evgeny"]
[WhiteFideId "2020009"]
[BlackFideId "2804344"]
[WhiteElo "2818"]
[BlackElo "2509"]
[Result "1-0"]
[Round "03"]
[TimeControl "180+2"]
[Date "2023.02.28"]
[WhiteClock "0:00:42"]
[BlackClock "0:00:03"]

1. e4 {[%clk 0:02:59]}  c6 {[%clk 0:03:00]} 2. d4 {[%clk 0:02:58]}  d5 {[%clk 0:03:01]} 3. exd5 {[%clk 0:02:58]}  cxd5 {[%clk 0:03:01]} 4. Bd3 {[%clk 0:02:58]}  Nc6 {[%clk 0:02:58]} 5. c3 {[%clk 0:02:59]}  Qc7 {[%clk 0:02:57]} 6. h3 {[%clk 0:02:57]}  g6 {[%clk 0:02:52]} 7. Nf3 {[%clk 0:02:57]}  Bf5 {[%clk 0:02:52]} 8. Be2 {[%clk 0:02:56]}  Bg7 {[%clk 0:02:40]} 9. O-O {[%clk 0:02:56]}  Nh6 {[%clk 0:02:37]} 10. Re1 {[%clk 0:02:52]}  O-O {[%clk 0:02:37]} 11. Nbd2 {[%clk 0:02:51]}  Rfe8 {[%clk 0:02:29]} 12. Nf1 {[%clk 0:02:50]}  Be4 {[%clk 0:02:25]} 13. Ng3 {[%clk 0:02:34]}  Nf5 {[%clk 0:02:16]} 14. Nxe4 {[%clk 0:02:09]}  dxe4 {[%clk 0:02:16]} 15. Ng5 {[%clk 0:02:09]}  e3 {[%clk 0:01:44]} 16. fxe3 {[%clk 0:02:08]}  Rad8 {[%clk 0:01:36]} 17. Bg4 {[%clk 0:01:56]}  Ng3 {[%clk 0:00:56]} 18. Bf3 {[%clk 0:01:39]}  e5 {[%clk 0:00:49]} 19. Bxc6 {[%clk 0:01:12]}  bxc6 {[%clk 0:00:46]} 20. Nf3 {[%clk 0:01:12]}  exd4 {[%clk 0:00:38]} 21. exd4 {[%clk 0:01:11]}  c5 {[%clk 0:00:32]} 22. Bg5 {[%clk 0:01:07]}  Rb8 {[%clk 0:00:27]} 23. d5 {[%clk 0:01:03]}  h6 {[%clk 0:00:16]} 24. d6 {[%clk 0:00:51]}  Qd7 {[%clk 0:00:16]} 25. Bf4 {[%clk 0:00:51]}  Nf5 {[%clk 0:00:14]} 26. Qd2 {[%clk 0:00:50]}  g5 {[%clk 0:00:13]} 27. Bh2 {[%clk 0:00:50]}  Re6 {[%clk 0:00:07]} 28. Rxe6 {[%clk 0:00:49]}  Qxe6 {[%clk 0:00:06]} 29. d7 {[%clk 0:00:45]}  Rd8 {[%clk 0:00:06]} 30. Rd1 {[%clk 0:00:46]}  Qe3+ {[%clk 0:00:03]} 31. Qxe3 {[%clk 0:00:45]}  Nxe3 {[%clk 0:00:04]} 32. Re1 {[%clk 0:00:41]}  Rxd7 {[%clk 0:00:03]} 33. Rxe3 {[%clk 0:00:42]}  Rd1+ {[%clk 0:00:03]} 34. Re1 {[%clk 0:00:42]} 1-0


[Site "https://www.chess.com"]

[Event "Titled Tuesday Blitz February 28 Early 2023"]
[White "Harsh Suresh"]
[Black "Firouzja, Alireza"]
[WhiteFideId "45018464"]
[BlackFideId "12573981"]
[WhiteElo "2227"]
[BlackElo "2904"]
[Result "0-1"]
[Round "03"]
[TimeControl "180+2"]
[Date "2023.02.28"]
[WhiteClock "0:00:08"]
[BlackClock "0:01:33"]

1. e4 {[%clk 0:03:00]}  c5 {[%clk 0:02:57]} 2. Nc3 {[%clk 0:03:00]}  d6 {[%clk 0:02:57]} 3. f4 {[%clk 0:02:59]}  g6 {[%clk 0:02:56]} 4. Nf3 {[%clk 0:02:59]}  Bg7 {[%clk 0:02:56]} 5. Bc4 {[%clk 0:03:00]}  Nc6 {[%clk 0:02:54]} 6. O-O {[%clk 0:03:00]}  Nf6 {[%clk 0:02:51]} 7. d3 {[%clk 0:02:58]}  O-O {[%clk 0:02:51]} 8. Qe1 {[%clk 0:02:57]}  a6 {[%clk 0:02:46]} 9. a4 {[%clk 0:02:55]}  Nb4 {[%clk 0:02:44]} 10. Bb3 {[%clk 0:02:53]}  Be6 {[%clk 0:02:27]} 11. Bxe6 {[%clk 0:01:56]}  Nxc2 {[%clk 0:02:27]} 12. Qd1 {[%clk 0:01:57]}  Nxa1 {[%clk 0:02:27]} 13. Ba2 {[%clk 0:01:57]}  b5 {[%clk 0:02:28]} 14. Bd2 {[%clk 0:01:08]}  b4 {[%clk 0:02:28]} 15. Qxa1 {[%clk 0:01:08]}  bxc3 {[%clk 0:02:28]} 16. bxc3 {[%clk 0:01:05]}  e6 {[%clk 0:02:19]} 17. Qe1 {[%clk 0:00:56]}  Rb8 {[%clk 0:02:19]} 18. Bc1 {[%clk 0:00:48]}  Qa5 {[%clk 0:02:15]} 19. Qd1 {[%clk 0:00:47]}  Qxc3 {[%clk 0:02:11]} 20. f5 {[%clk 0:00:47]}  exf5 {[%clk 0:02:09]} 21. exf5 {[%clk 0:00:47]}  d5 {[%clk 0:02:10]} 22. Bf4 {[%clk 0:00:44]}  Qb2 {[%clk 0:01:34]} 23. Rf2 {[%clk 0:00:31]}  Qb4 {[%clk 0:01:32]} 24. Bxb8 {[%clk 0:00:26]}  Rxb8 {[%clk 0:01:33]} 25. fxg6 {[%clk 0:00:25]}  hxg6 {[%clk 0:01:32]} 26. h3 {[%clk 0:00:23]}  Bh6 {[%clk 0:01:32]} 27. Kh2 {[%clk 0:00:20]}  Nh5 {[%clk 0:01:31]} 28. Bxd5 {[%clk 0:00:19]}  Bf4+ {[%clk 0:01:29]} 29. Kh1 {[%clk 0:00:19]}  Ng3+ {[%clk 0:01:29]} 30. Kg1 {[%clk 0:00:17]}  Be3 {[%clk 0:01:30]} 31. Ne5 {[%clk 0:00:11]}  Bxf2+ {[%clk 0:01:30]} 32. Kxf2 {[%clk 0:00:12]}  Qd4+ {[%clk 0:01:30]} 33. Kxg3 {[%clk 0:00:10]}  Qxe5+ {[%clk 0:01:31]} 34. Kf2 {[%clk 0:00:09]}  Qxd5 {[%clk 0:01:31]} 35. Qe2 {[%clk 0:00:08]}  Qd4+ {[%clk 0:01:31]} 36. Kg3 {[%clk 0:00:08]}  Rb2 {[%clk 0:01:32]} 37. Qe8+ {[%clk 0:00:08]}  Kg7 {[%clk 0:01:32]} 38. Kh2 {[%clk 0:00:08]}  Qf4+ {[%clk 0:01:32]} 39. Kg1 {[%clk 0:00:07]}  Rb1+ {[%clk 0:01:32]} 40. Qe1 {[%clk 0:00:08]}  Rxe1# {[%clk 0:01:33]} 0-1


[Site "https://www.chess.com"]

[Event "Titled Tuesday Blitz February 28 Early 2023"]
[White "Paravyan, David"]
[Black "Amin, Bassem"]
[WhiteFideId "4194985"]
[BlackFideId "10601457"]
[WhiteElo "2577"]
[BlackElo "2690"]
[Result "1/2-1/2"]
[Round "03"]
[TimeControl "180+2"]
[Date "2023.02.28"]
[WhiteClock "0:00:14"]
[BlackClock "0:00:02"]

1. e4 {[%clk 0:03:00]}  e5 {[%clk 0:02:51]} 2. Nf3 {[%clk 0:03:00]}  Nc6 {[%clk 0:02:52]} 3. Bb5 {[%clk 0:03:00]}  a6 {[%clk 0:02:52]} 4. Ba4 {[%clk 0:03:01]}  Nf6 {[%clk 0:02:52]} 5. O-O {[%clk 0:03:02]}  Be7 {[%clk 0:02:52]} 6. d3 {[%clk 0:03:02]}  d6 {[%clk 0:02:52]} 7. c3 {[%clk 0:03:02]}  O-O {[%clk 0:02:52]} 8. Re1 {[%clk 0:03:02]}  Re8 {[%clk 0:02:53]} 9. h3 {[%clk 0:03:00]}  Bf8 {[%clk 0:02:53]} 10. Bg5 {[%clk 0:03:01]}  h6 {[%clk 0:02:51]} 11. Bh4 {[%clk 0:03:01]}  b5 {[%clk 0:02:29]} 12. Bc2 {[%clk 0:02:59]}  g5 {[%clk 0:02:11]} 13. Bg3 {[%clk 0:02:58]}  Bg7 {[%clk 0:02:09]} 14. Nbd2 {[%clk 0:02:56]}  d5 {[%clk 0:02:06]} 15. a4 {[%clk 0:02:42]}  Bb7 {[%clk 0:02:00]} 16. Nb3 {[%clk 0:02:30]}  dxe4 {[%clk 0:01:56]} 17. dxe4 {[%clk 0:02:31]}  Qxd1 {[%clk 0:01:55]} 18. Rexd1 {[%clk 0:02:32]}  Bf8 {[%clk 0:01:49]} 19. axb5 {[%clk 0:02:29]}  axb5 {[%clk 0:01:49]} 20. Rxa8 {[%clk 0:02:29]}  Bxa8 {[%clk 0:01:50]} 21. Ra1 {[%clk 0:01:56]}  Bd6 {[%clk 0:01:46]} 22. Nfd2 {[%clk 0:01:38]}  Nh5 {[%clk 0:01:37]} 23. Bh2 {[%clk 0:01:38]}  Nf4 {[%clk 0:01:35]} 24. Kf1 {[%clk 0:01:19]}  Bb7 {[%clk 0:01:35]} 25. f3 {[%clk 0:01:19]}  Bc8 {[%clk 0:01:00]} 26. Bg1 {[%clk 0:01:20]}  Rd8 {[%clk 0:00:50]} 27. Be3 {[%clk 0:01:19]}  Be6 {[%clk 0:00:50]} 28. Ra6 {[%clk 0:00:56]}  Ne7 {[%clk 0:00:46]} 29. Na5 {[%clk 0:00:55]}  Bc5 {[%clk 0:00:20]} 30. Bxf4 {[%clk 0:00:55]}  gxf4 {[%clk 0:00:13]} 31. Ke2 {[%clk 0:00:56]}  Bb6 {[%clk 0:00:12]} 32. Bb3 {[%clk 0:00:37]}  Bc8 {[%clk 0:00:08]} 33. Ra8 {[%clk 0:00:37]}  Kg7 {[%clk 0:00:07]} 34. Ba2 {[%clk 0:00:28]}  Kf6 {[%clk 0:00:04]} 35. b4 {[%clk 0:00:28]}  Rg8 {[%clk 0:00:03]} 36. Kf1 {[%clk 0:00:26]}  Rd8 {[%clk 0:00:04]} 37. Ke2 {[%clk 0:00:26]}  Be3 {[%clk 0:00:03]} 38. Nf1 {[%clk 0:00:24]}  Bb6 {[%clk 0:00:02]} 39. Nd2 {[%clk 0:00:14]} 1/2-1/2


[Site "https://www.chess.com"]

[Event "Titled Tuesday Blitz February 28 Early 2023"]
[White "Maximov, Dmitry"]
[Black "Erigaisi Arjun"]
[WhiteFideId "14105659"]
[BlackFideId "35009192"]
[WhiteElo "2494"]
[BlackElo "2737"]
[Result "0-1"]
[Round "03"]
[TimeControl "180+2"]
[Date "2023.02.28"]
[WhiteClock "0:00:09"]
[BlackClock "0:01:36"]

1. e4 {[%clk 0:03:00]}  d6 {[%clk 0:02:51]} 2. d4 {[%clk 0:03:00]}  g6 {[%clk 0:02:50]} 3. Nc3 {[%clk 0:03:00]}  Bg7 {[%clk 0:02:50]} 4. Be3 {[%clk 0:03:00]}  c6 {[%clk 0:02:48]} 5. Qd2 {[%clk 0:03:00]}  b5 {[%clk 0:02:48]} 6. f3 {[%clk 0:02:55]}  Nd7 {[%clk 0:02:47]} 7. h4 {[%clk 0:02:52]}  h6 {[%clk 0:02:43]} 8. Nh3 {[%clk 0:02:52]}  Nb6 {[%clk 0:02:41]} 9. Nf2 {[%clk 0:02:43]}  b4 {[%clk 0:02:39]} 10. Ncd1 {[%clk 0:02:42]}  a5 {[%clk 0:02:38]} 11. Bd3 {[%clk 0:02:41]}  Nf6 {[%clk 0:02:29]} 12. c4 {[%clk 0:02:26]}  bxc3 {[%clk 0:02:22]} 13. Nxc3 {[%clk 0:02:26]}  Ba6 {[%clk 0:02:22]} 14. Bxa6 {[%clk 0:02:16]}  Rxa6 {[%clk 0:02:23]} 15. Qe2 {[%clk 0:02:16]}  Ra7 {[%clk 0:02:19]} 16. Rc1 {[%clk 0:01:59]}  Nh5 {[%clk 0:02:17]} 17. Rh3 {[%clk 0:01:55]}  e5 {[%clk 0:02:14]} 18. d5 {[%clk 0:01:48]}  c5 {[%clk 0:02:04]} 19. Nb5 {[%clk 0:01:47]}  Rb7 {[%clk 0:02:01]} 20. g4 {[%clk 0:01:38]}  Nf4 {[%clk 0:02:01]} 21. Bxf4 {[%clk 0:01:38]}  exf4 {[%clk 0:02:02]} 22. Nd3 {[%clk 0:01:24]}  O-O {[%clk 0:01:48]} 23. Kf1 {[%clk 0:01:11]}  Re8 {[%clk 0:01:45]} 24. Nxf4 {[%clk 0:01:04]}  Qf6 {[%clk 0:01:45]} 25. Qd2 {[%clk 0:01:03]}  Na4 {[%clk 0:01:43]} 26. b3 {[%clk 0:00:41]}  Rxb5 {[%clk 0:01:43]} 27. bxa4 {[%clk 0:00:36]}  Rb2 {[%clk 0:01:44]} 28. Qe3 {[%clk 0:00:35]}  Rxa2 {[%clk 0:01:42]} 29. g5 {[%clk 0:00:35]}  hxg5 {[%clk 0:01:37]} 30. hxg5 {[%clk 0:00:34]}  Qxg5 {[%clk 0:01:38]} 31. Re1 {[%clk 0:00:09]}  Bd4 {[%clk 0:01:36]} 0-1


[Site "https://www.chess.com"]

[Event "Titled Tuesday Blitz February 28 Early 2023"]
[White "Duda, Jan-Krzysztof"]
[Black "Alexakis, Dimitris"]
[WhiteFideId "1170546"]
[BlackFideId "4277023"]
[WhiteElo "2790"]
[BlackElo "2493"]
[Result "1-0"]
[Round "03"]
[TimeControl "180+2"]
[Date "2023.02.28"]
[WhiteClock "0:00:09"]
[BlackClock "0:00:12"]

1. c3 {[%clk 0:03:00]}  e5 {[%clk 0:02:52]} 2. d4 {[%clk 0:03:01]}  d6 {[%clk 0:02:45]} 3. e4 {[%clk 0:03:00]}  Nf6 {[%clk 0:02:42]} 4. Bd3 {[%clk 0:02:54]}  d5 {[%clk 0:02:32]} 5. dxe5 {[%clk 0:02:46]}  dxe4 {[%clk 0:02:19]} 6. exf6 {[%clk 0:02:46]}  Qxd3 {[%clk 0:02:14]} 7. Qxd3 {[%clk 0:02:45]}  exd3 {[%clk 0:02:15]} 8. fxg7 {[%clk 0:02:45]}  Bxg7 {[%clk 0:02:16]} 9. Bf4 {[%clk 0:02:45]}  O-O {[%clk 0:02:11]} 10. Na3 {[%clk 0:02:28]}  Re8+ {[%clk 0:02:05]} 11. Kd2 {[%clk 0:02:29]}  Na6 {[%clk 0:02:00]} 12. h4 {[%clk 0:02:10]}  Nc5 {[%clk 0:01:46]} 13. Be3 {[%clk 0:01:44]}  Na4 {[%clk 0:01:03]} 14. Rb1 {[%clk 0:01:39]}  Be6 {[%clk 0:01:02]} 15. Nb5 {[%clk 0:01:39]}  Re7 {[%clk 0:00:47]} 16. b3 {[%clk 0:01:37]}  a6 {[%clk 0:00:33]} 17. Nd4 {[%clk 0:00:41]}  Nxc3 {[%clk 0:00:32]} 18. Rc1 {[%clk 0:00:34]}  Ne4+ {[%clk 0:00:09]} 19. Kxd3 {[%clk 0:00:33]}  Bd5 {[%clk 0:00:04]} 20. h5 {[%clk 0:00:22]}  c5 {[%clk 0:00:03]} 21. Nf5 {[%clk 0:00:22]}  Nxf2+ {[%clk 0:00:03]} 22. Ke2 {[%clk 0:00:16]}  Rxe3+ {[%clk 0:00:04]} 23. Nxe3 {[%clk 0:00:17]}  Nxh1 {[%clk 0:00:04]} 24. Nxd5 {[%clk 0:00:17]}  Ng3+ {[%clk 0:00:05]} 25. Kf3 {[%clk 0:00:16]}  Nxh5 {[%clk 0:00:06]} 26. Rxc5 {[%clk 0:00:16]}  Nf6 {[%clk 0:00:06]} 27. Ne7+ {[%clk 0:00:16]}  Kf8 {[%clk 0:00:06]} 28. Rc7 {[%clk 0:00:17]}  Rd8 {[%clk 0:00:04]} 29. Nf5 {[%clk 0:00:12]}  Ne8 {[%clk 0:00:02]} 30. Rxb7 {[%clk 0:00:12]}  Nd6 {[%clk 0:00:02]} 31. Nxd6 {[%clk 0:00:12]}  Rxd6 {[%clk 0:00:03]} 32. Nh3 {[%clk 0:00:05]}  h6 {[%clk 0:00:02]} 33. Nf4 {[%clk 0:00:05]}  Be5 {[%clk 0:00:03]} 34. a4 {[%clk 0:00:02]}  Rf6 {[%clk 0:00:02]} 35. g3 {[%clk 0:00:03]}  h5 {[%clk 0:00:01]} 36. Rb4 {[%clk 0:00:02]}  Bxf4 {[%clk 0:00:01]} 37. Rxf4 {[%clk 0:00:03]}  Ke7 {[%clk 0:00:01]} 38. Rxf6 {[%clk 0:00:02]}  Kxf6 {[%clk 0:00:02]} 39. Kf4 {[%clk 0:00:03]}  Ke6 {[%clk 0:00:02]} 40. b4 {[%clk 0:00:04]}  Kd5 {[%clk 0:00:02]} 41. Kg5 {[%clk 0:00:04]}  Kc4 {[%clk 0:00:02]} 42. b5 {[%clk 0:00:05]}  axb5 {[%clk 0:00:03]} 43. axb5 {[%clk 0:00:06]}  Kxb5 {[%clk 0:00:04]} 44. Kf6 {[%clk 0:00:06]}  Kc6 {[%clk 0:00:05]} 45. Kxf7 {[%clk 0:00:06]}  Kd5 {[%clk 0:00:06]} 46. Kg6 {[%clk 0:00:07]}  Ke5 {[%clk 0:00:07]} 47. Kxh5 {[%clk 0:00:07]}  Kf6 {[%clk 0:00:07]} 48. g4 {[%clk 0:00:07]}  Kg7 {[%clk 0:00:08]} 49. Kg5 {[%clk 0:00:08]}  Kf7 {[%clk 0:00:09]} 50. Kh6 {[%clk 0:00:08]}  Kg8 {[%clk 0:00:09]} 51. Kg6 {[%clk 0:00:09]}  Kh8 {[%clk 0:00:09]} 52. Kf7 {[%clk 0:00:09]}  Kh7 {[%clk 0:00:10]} 53. g5 {[%clk 0:00:10]}  Kh8 {[%clk 0:00:11]} 54. Kg6 {[%clk 0:00:07]}  Kg8 {[%clk 0:00:11]} 55. Kh6 {[%clk 0:00:07]}  Kh8 {[%clk 0:00:12]} 56. g6 {[%clk 0:00:08]}  Kg8 {[%clk 0:00:12]} 57. g7 {[%clk 0:00:09]}  Kf7 {[%clk 0:00:12]} 58. Kh7 {[%clk 0:00:09]} 1-0


[Site "https://www.chess.com"]

[Event "Titled Tuesday Blitz February 28 Early 2023"]
[White "Le, Tuan Minh"]
[Black "Kilic, Eray"]
[WhiteFideId "12401153"]
[BlackFideId "44517173"]
[WhiteElo "2558"]
[BlackElo "2328"]
[Result "1-0"]
[Round "03"]
[TimeControl "180+2"]
[Date "2023.02.28"]
[WhiteClock "0:00:07"]
[BlackClock "0:00:09"]

1. d4 {[%clk 0:02:54]}  Nf6 {[%clk 0:03:00]} 2. Nf3 {[%clk 0:02:54]}  g6 {[%clk 0:03:00]} 3. Bg5 {[%clk 0:02:54]}  Bg7 {[%clk 0:03:00]} 4. Nbd2 {[%clk 0:02:54]}  d5 {[%clk 0:03:00]} 5. c3 {[%clk 0:02:54]}  O-O {[%clk 0:03:00]} 6. e3 {[%clk 0:02:55]}  b6 {[%clk 0:02:59]} 7. Bd3 {[%clk 0:02:55]}  c5 {[%clk 0:02:59]} 8. O-O {[%clk 0:02:56]}  Nc6 {[%clk 0:02:57]} 9. Qe2 {[%clk 0:02:53]}  Bb7 {[%clk 0:02:57]} 10. h3 {[%clk 0:02:52]}  Nd7 {[%clk 0:02:56]} 11. Rfd1 {[%clk 0:02:40]}  Qc7 {[%clk 0:02:55]} 12. Ba6 {[%clk 0:02:30]}  Bxa6 {[%clk 0:02:17]} 13. Qxa6 {[%clk 0:02:31]}  e5 {[%clk 0:02:17]} 14. dxe5 {[%clk 0:02:18]}  Ndxe5 {[%clk 0:02:17]} 15. Bf4 {[%clk 0:02:18]}  Qc8 {[%clk 0:02:03]} 16. Qxc8 {[%clk 0:02:17]}  Raxc8 {[%clk 0:02:04]} 17. Nxe5 {[%clk 0:02:18]}  Bxe5 {[%clk 0:02:00]} 18. Bxe5 {[%clk 0:01:56]}  Nxe5 {[%clk 0:02:01]} 19. Nf3 {[%clk 0:01:57]}  Nxf3+ {[%clk 0:01:11]} 20. gxf3 {[%clk 0:01:58]}  Rfd8 {[%clk 0:01:12]} 21. Rd2 {[%clk 0:01:55]}  Rc7 {[%clk 0:01:12]} 22. Rad1 {[%clk 0:01:56]}  Rcd7 {[%clk 0:01:13]} 23. Kf1 {[%clk 0:01:40]}  Kg7 {[%clk 0:01:11]} 24. e4 {[%clk 0:01:39]}  d4 {[%clk 0:01:09]} 25. cxd4 {[%clk 0:01:39]}  cxd4 {[%clk 0:01:05]} 26. Ke2 {[%clk 0:01:40]}  Kf6 {[%clk 0:01:02]} 27. f4 {[%clk 0:01:40]}  g5 {[%clk 0:01:00]} 28. Kf3 {[%clk 0:01:39]}  h6 {[%clk 0:00:56]} 29. a3 {[%clk 0:01:32]}  Ke6 {[%clk 0:00:53]} 30. Rc1 {[%clk 0:01:13]}  Rd6 {[%clk 0:00:47]} 31. e5 {[%clk 0:01:03]}  Rd5 {[%clk 0:00:47]} 32. Rc6+ {[%clk 0:01:03]}  Ke7 {[%clk 0:00:48]} 33. Rxh6 {[%clk 0:01:02]}  gxf4 {[%clk 0:00:48]} 34. Kxf4 {[%clk 0:01:03]}  d3 {[%clk 0:00:46]} 35. Ke4 {[%clk 0:00:51]}  Rb5 {[%clk 0:00:33]} 36. h4 {[%clk 0:00:40]}  Rdd5 {[%clk 0:00:31]} 37. f4 {[%clk 0:00:38]}  Rdc5 {[%clk 0:00:28]} 38. Rxd3 {[%clk 0:00:29]}  Rxb2 {[%clk 0:00:26]} 39. Rhd6 {[%clk 0:00:29]}  Rf2 {[%clk 0:00:18]} 40. Kf5 {[%clk 0:00:17]}  Rc4 {[%clk 0:00:19]} 41. R6d4 {[%clk 0:00:17]}  Rxd4 {[%clk 0:00:17]} 42. Rxd4 {[%clk 0:00:18]}  b5 {[%clk 0:00:16]} 43. Rd5 {[%clk 0:00:14]}  Rb2 {[%clk 0:00:16]} 44. h5 {[%clk 0:00:13]}  a6 {[%clk 0:00:14]} 45. Rd6 {[%clk 0:00:13]}  a5 {[%clk 0:00:14]} 46. Ra6 {[%clk 0:00:14]}  a4 {[%clk 0:00:13]} 47. Ra7+ {[%clk 0:00:14]}  Kf8 {[%clk 0:00:12]} 48. Kf6 {[%clk 0:00:15]}  Kg8 {[%clk 0:00:13]} 49. Rxf7 {[%clk 0:00:12]}  Rf2 {[%clk 0:00:13]} 50. Ke6 {[%clk 0:00:08]}  Rf3 {[%clk 0:00:12]} 51. Rb7 {[%clk 0:00:05]}  Rxa3 {[%clk 0:00:10]} 52. Rxb5 {[%clk 0:00:03]}  Rf3 {[%clk 0:00:10]} 53. f5 {[%clk 0:00:04]}  a3 {[%clk 0:00:11]} 54. Ra5 {[%clk 0:00:04]}  Kh7 {[%clk 0:00:11]} 55. f6 {[%clk 0:00:05]}  Kh6 {[%clk 0:00:11]} 56. Ke7 {[%clk 0:00:05]}  Kxh5 {[%clk 0:00:11]} 57. e6+ {[%clk 0:00:06]}  Kg6 {[%clk 0:00:12]} 58. f7 {[%clk 0:00:07]}  Kg7 {[%clk 0:00:12]} 59. Rxa3 {[%clk 0:00:07]}  Rf6 {[%clk 0:00:10]} 60. Rg3+ {[%clk 0:00:07]}  Kh7 {[%clk 0:00:09]} 61. Kxf6 {[%clk 0:00:07]} 1-0


[Site "https://www.chess.com"]